Cogmind - Beta 12 @@@ ROGUE MODE // 2023.12.26 @ 23:53:12 Player: didyousaycookie Result: Destroyed by G-34 Mercenary with Small Laser Performance ------------- Evolutions (0) 0 Regions Visited (4) 800 Robots Destroyed (17) 85 Value Destroyed (483) 483 Prototype IDs (2) 40 Alien Tech Used (0) 0 Bonus (77) 77 TOTAL SCORE: 1485 Bonus ------- Follower Combat Kills 77 Cogmind --------- Core Integrity 0/250 Matter 290/300 Energy 105/125 System Corruption 0% Temperature Cool (66) Movement Walking (190) Ox1 Location -9/Mines Parts ------- > --- POWER (1) -------- Light Ion Engine > --- PROPULSION (2) --- Improved Aluminum Leg > --- UTILITY (2) ------ Medium Storage Unit Seismic Detector > --- WEAPON (2) ------- Small Laser Makeshift Axe > --- INVENTORY (10) --- Aluminum Leg Aluminum Leg Aluminum Leg Aluminum Leg Improved Aluminum Leg Improved Heat Sink Rocket Launcher Mining Laser Peak State ------------ > --- POWER ------------ Ion Engine > --- PROPULSION ------- Aluminum Leg Aluminum Leg > --- UTILITY ---------- Medium Storage Unit Seismic Detector > --- WEAPON ----------- Particle Gun Makeshift Axe > --- INVENTORY -------- Ion Engine Aluminum Leg Aluminum Leg Aluminum Leg Aluminum Leg Aluminum Leg Improved Heat Sink Rocket Launcher Mining Laser [Rating: 12] Favorites ----------- Power Ion Engine Engine Ion Engine Propulsion Aluminum Leg Leg Aluminum Leg Utility Medium Storage Unit Device Seismic Detector Storage Medium Storage Unit Weapon Small Laser Energy Gun Small Laser Ballistic Gun Assault Rifle Launcher Grenade Launcher Slashing Weapon Makeshift Axe Build | -11 -10 -10 -10 -9 ------- Run | Jun Mat Min Exi Min Slots Evolved . | . . . . . Power . | . . . . . Propulsion . | . . . . . Utility . | . . . . . Weapon . | . . . . . Parts Attached 37 | 6 2 12 . 17 Power 6 | 1 . 1 . 4 Engine 6 | 1 . 1 . 4 Core . | . . . . . Reactor . | . . . . . Propulsion 8 | 2 . 2 . 4 Treads . | . . . . . Leg 8 | 2 . 2 . 4 Wheel . | . . . . . Hover . | . . . . . Flight . | . . . . . Utility 7 | 1 2 3 . 1 Device 4 | . 1 2 . 1 Storage 3 | 1 1 1 . . Processor . | . . . . . Hackware . | . . . . . Protection . | . . . . . Artifact . | . . . . . Weapon 16 | 2 . 6 . 8 Energy Gun 7 | . . 4 . 3 Energy Cannon . | . . . . . Ballistic Gun 3 | 2 . 1 . . Ballistic Cannon . | . . . . . Launcher 1 | . . 1 . . Special Weapon . | . . . . . Impact Weapon . | . . . . . Slashing Weapon 5 | . . . . 5 Piercing Weapon . | . . . . . Special Melee Weapon . | . . . . . Unidentified Prototypes . | . . . . . Parts Lost 10 | . . 5 . 5 Power 2 | . . 1 . 1 Propulsion 4 | . . 2 . 2 Utility . | . . . . . Weapon 4 | . . 2 . 2 Highest Loss Streak 3 | . . 2 . 3 To Critical Strikes . | . . . . . Average Slot Usage (%) 98 | . 98 98 100 98 Engine 13 | . 14 13 14 13 Leg 27 | . 28 27 28 27 Device 13 | . 12 14 14 14 Storage 14 | . 14 14 14 14 Energy Gun 15 | . . 13 28 25 Ballistic Gun 11 | . 28 14 . . Naked Turns . | . . . . . Heaviest Build 22 | 13 19 20 20 22 Greatest Support 23 | 20 20 20 20 23 Greatest Overweight (x) 1 | . . 1 . 1 Average Overweight (x) . | . . . . . Largest Inventory Capacity 10 | 8 10 10 10 10 Average Capacity 9 | 7 9 10 10 10 Most Carried 10 | 4 8 10 10 10 Average Carried 8 | 2 7 9 10 9 Final Capacity 10 | 8 10 10 10 10 Final Carried 10 | 4 8 10 10 8 Class Distribution -------------------- 72% | Mutant 27% | Scavenger-Mutant Dominant Class ---------------- Mutant | -10/Materials Mutant | -10/Mines Scavenger-Mutant | -10/Exiles Mutant | -9/Mines Resources | -11 -10 -10 -10 -9 ----------- Run | Jun Mat Min Exi Min Matter Collected 655 | 219 101 185 . 150 Remotely . | . . . . . Salvage Created 719 | . 137 252 . 330 Parts 31 | . 12 11 . 8 Haulers Intercepted 1 | . 1 . . . Recyclers Shooed 1 | . . . . 1 Parts Field Recycled . | . . . . . Retrieved Matter . | . . . . . Parts Self-Destructed . | . . . . . Prevented . | . . . . . Kills | -11 -10 -10 -10 -9 ------- Run | Jun Mat Min Exi Min Combat Hostiles Destroyed 14 | . 4 6 . 4 Melee 4 | . . . . 4 Guns 10 | . 4 6 . . Classes Destroyed 5 | . 3 . . 2 Hauler 1 | . 1 . . . Recycler 2 | . . . . 2 Swarmer 3 | . 3 . . . Grunt 9 | . 1 6 . 2 Duelist 2 | . . . . 2 Best Kill Streak 2 | . 2 2 . 2 Combat Bots Only 2 | . 2 2 . 2 Max Kills in Single Turn 1 | . 1 1 . 1 Gunslinging . | . . . . . Exploded . | . . . . . Melee 1 | . . . . 1 Uniques/NPCs Destroyed . | . . . . . Combat | -11 -10 -10 -10 -9 -------- Run | Jun Mat Min Exi Min Damage Taken 1325 | . 128 536 . 661 Core 253 | . 12 81 . 160 Absorbed by Shields . | . . . . . Core Remaining (%) 100 | 100 . . . . Volleys Fired 49 | . 11 26 . 12 Largest 2 | . 2 2 . 2 Hottest 105 | . 40 80 . 105 Shots Fired 95 | . 22 52 . 21 Gun 93 | . 22 50 . 21 Cannon . | . . . . . Launcher 2 | . . 2 . . Special . | . . . . . Kinetic 52 | . 22 30 . . Thermal 34 | . . 13 . 21 Explosive 2 | . . 2 . . Electromagnetic 7 | . . 7 . . Robot Hit Streak 9 | . 4 9 . 7 Robot Miss Streak 3 | . 3 3 . 3 Penetration Max . | . . . . . Secondary Targets 1 | . . 1 . . Max Gunslinging Chain 1 | . . 1 . . Shots Hit Robots 72 | . 13 35 . 24 Core Hits 30 | . 7 15 . 8 Critical Kills . | . . . . . Critical Parts Destroyed . | . . . . . Critical Strikes . | . . . . . Melee Attacks 13 | . . . . 13 Impact . | . . . . . Slashing 13 | . . . . 13 Piercing . | . . . . . Sneak Attacks 1 | . . . . 1 Combat Hostiles . | . . . . . Follow-up Attacks . | . . . . . Damage Inflicted 1209 | . 147 526 . 536 Guns 722 | . 144 387 . 191 Cannons . | . . . . . Explosions 135 | . . 135 . . Melee 345 | . . . . 345 Ramming 7 | . 3 4 . . Kinetic 348 | . 144 204 . . Thermal 289 | . . 98 . 191 Explosive 135 | . . 135 . . Electromagnetic 85 | . . 85 . . Impact . | . . . . . Slashing 345 | . . . . 345 Piercing . | . . . . . Highest Corruption . | . . . . . Average Corruption . | . . . . . Corruption Purged . | . . . . . Corruption Blocked . | . . . . . Overload Shots . | . . . . . Overflow Damage 46 | . . . . 46 Projectiles . | . . . . . Explosions . | . . . . . Melee 46 | . . . . 46 Knockbacks . | . . . . . Impact . | . . . . . Kinetic . | . . . . . Secondary . | . . . . . Self-Inflicted Damage 34 | . . 34 . . Shots 2 | . . 2 . . Rammed . | . . . . . Targets Rammed 2 | . 1 1 . . Kicked 2 | . 1 1 . . Crushed . | . . . . . Highest Temperature 180 | . 6 45 . 180 Average Temperature 37 | . 6 16 . 56 Received Heat Transfer 450 | . 18 300 . 132 Siege Activations . | . . . . . Robots Corrupted . | . . . . . Combat Hostiles . | . . . . . Parts Fried 1 | . . 1 . . Impact Corruptions . | . . . . . Robots Melted . | . . . . . Combat Hostiles . | . . . . . Parts Melted . | . . . . . Heat Transferred 683 | . . 225 . 458 Parts Sabotaged . | . . . . . Parts Stolen . | . . . . . Parts Stripped . | . . . . . Power Chain Reactions . | . . . . . Missiles Intercepted . | . . . . . Alert | -11 -10 -10 -10 -9 ------- Run | Jun Mat Min Exi Min Peak Influence 128 | . 83 82 . 128 Initial . | . . . . . Average 34 | . 30 35 . 39 Maximum Alert Level . | . . . . . Low Security (%) 100 | 100 100 100 . 100 Level 1 . | . . . . . Level 2 . | . . . . . Level 3 . | . . . . . Level 4 . | . . . . . Level 5 . | . . . . . High Security . | . . . . . Max Security . | . . . . . Squads Dispatched 1 | . 1 . . . Investigation 1 | . 1 . . . Extermination . | . . . . . Reinforcement . | . . . . . Assault . | . . . . . Garrison . | . . . . . Intercept . | . . . . . Searches Triggered . | . . . . . Construction Impeded . | . . . . . Haulers Reinforced . | . . . . . Active Scanning Responses . | . . . . . Cargo Convoy Interrupts . | . . . . . Stealth | -11 -10 -10 -10 -9 --------- Run | Jun Mat Min Exi Min Distress Signals 1 | . 1 . . . Communications Jammed . | . . . . . Distress Signals . | . . . . . Times Spotted 25 | . 8 6 . 11 Peak Tracking Total 4 | . 3 2 . 4 Tactical Retreats 1 | . 1 . . . Traps | -11 -10 -10 -10 -9 ------- Run | Jun Mat Min Exi Min Traps Triggered . | . . . . . Indirectly . | . . . . . Trap Hack Attempts . | . . . . . Triggered . | . . . . . Disarmed . | . . . . . Reprogrammed . | . . . . . Reused . | . . . . . Traps Extracted . | . . . . . Installed . | . . . . . Triggered . | . . . . . Machines | -11 -10 -10 -10 -9 ---------- Run | Jun Mat Min Exi Min Machines Disabled . | . . . . . Max in Single Turn . | . . . . . Machines Repaired . | . . . . . Machines Sabotaged . | . . . . . Overloaded Fab Kills . | . . . . . Hacking | -11 -10 -10 -10 -9 --------- Run | Jun Mat Min Exi Min Machines Accessed 9 | . 9 . . . Terminals 7 | . 7 . . . Fabricators . | . . . . . Repair Stations . | . . . . . Recycling Units 2 | . 2 . . . Scanalyzers . | . . . . . Garrison Access . | . . . . . Total Hacks 24 | . 24 . . . Successful 11 | . 11 . . . Failed 13 | . 13 . . . Catastrophic 2 | . 2 . . . Database Lockouts . | . . . . . Manual 18 | . 18 . . . Terminals 22 | . 22 . . . Fabricators . | . . . . . Repair Stations . | . . . . . Recycling Units 2 | . 2 . . . Scanalyzers . | . . . . . Garrison Access . | . . . . . Terminal Hacks 3 | . 3 . . . Prototype ID Bank 1 | . 1 . . . Locate Traps 2 | . 2 . . . Fabricator Hacks . | . . . . . Repair Station Hacks . | . . . . . Recycling Unit Hacks 1 | . 1 . . . Report Inventory 1 | . 1 . . . Scanalyzer . | . . . . . Garrison Access Hacks . | . . . . . Unauthorized Hacks 7 | . 7 . . . Terminals 7 | . 7 . . . Assimilate 3 | . 3 . . . Botnet 4 | . 4 . . . Fabricators . | . . . . . Repair Stations . | . . . . . Recycling Units . | . . . . . Scanalyzers . | . . . . . Garrison Access . | . . . . . Data Cores Recovered . | . . . . . Used . | . . . . . Hacking Detections 6 | . 6 . . . Full Trace Events 3 | . 3 . . . Feedback Events . | . . . . . Feedback Blocked . | . . . . . Robot Schematics Acquired . | . . . . . Robots Built . | . . . . . Authchips . | . . . . . Time . | . . . . . Total Robot Build Rating . | . . . . . Part Schematics Acquired . | . . . . . Parts Built . | . . . . . Authchips . | . . . . . Time . | . . . . . Total Part Build Rating . | . . . . . Parts Repaired . | . . . . . Time . | . . . . . Parts Recycled . | . . . . . Recycled Matter . | . . . . . Retrieved Matter . | . . . . . Retrieved Components . | . . . . . Parts Scanalyzed . | . . . . . Part Schematics Acquired . | . . . . . Parts Damaged . | . . . . . Bothacking | -11 -10 -10 -10 -9 ------------ Run | Jun Mat Min Exi Min Used RIF Installer . | . . . . . Robots Hacked . | . . . . . Non-combat . | . . . . . Combat . | . . . . . Robot Hacks Applied . | . . . . . Relay Couplers Released . | . . . . . Fabnet Peak Effective % . | . . . . . Robots Rewired . | . . . . . Allies Hacked . | . . . . . Hacks Repelled . | . . . . . Allies | -11 -10 -10 -10 -9 -------- Run | Jun Mat Min Exi Min Total Allies 4 | . . 1 . 3 Largest Group 3 | . . 1 1 3 Highest-Rated Group 40 | . . 31 31 40 Highest-Rated Ally 31 | . . 31 31 16 Total Orders . | . . . . . Ally Attacks 22 | . . . . 22 Total Damage 246 | . . . . 246 Kills 3 | . . . . 3 Allies Corrupted 2 | . . . . 2 Allies Melted . | . . . . . Intel | -11 -10 -10 -10 -9 ------- Run | Jun Mat Min Exi Min Robot Analysis Total . | . . . . . Derelict Logs Recovered 3 | . . 1 . 2 Drone Launches . | . . . . . Drone Recoveries . | . . . . . Exploration | -11 -10 -10 -10 -9 ------------- Run | Jun Mat Min Exi Min Turns Passed 3319 | 67 936 860 675 781 Spaces Moved 2341 | 48 712 622 563 396 Core 8 | 8 . . . . Treads . | . . . . . Legs 2333 | 40 712 622 563 396 Wheels . | . . . . . Hover . | . . . . . Flight . | . . . . . Fastest Speed 50 | 50 120 120 120 120 Average Speed 120 | 108 120 120 120 122 Slowest Speed 190 | 120 120 190 120 190 Overloaded Moves . | . . . . . Propulsion Burnouts . | . . . . . Robots Hopped . | . . . . . Cave-ins Triggered . | . . . . . Exploration Rate (%) 73 | 4 96 99 90 77 Regions Visited 4 Branch Regions 3 Pre-discovered Areas 2 | . . . . 2 Known Exits Taken . | . . . . . Unknown Exits Taken 4 | 1 1 1 1 . Scrap Searched 3 | . . 2 . 1 Spaces Dug . | . . . . . Terrain Destroyed 15 | . . 15 . . Melee . | . . . . . Projectile . | . . . . . AOE 15 | . . 15 . . Terrain Rammed . | . . . . . Walls Destroyed . | . . . . . Machines Disabled . | . . . . . Actions | -11 -10 -10 -10 -9 --------- Run | Jun Mat Min Exi Min Total 2738 | 60 773 685 562 658 Wait 264 | 3 43 10 . 208 Move 2337 | 47 711 621 562 396 Hop . | . . . . . Pick Up 22 | 4 4 8 . 6 Fast Attach 11 | 6 1 3 . 1 Attach 8 | . . 3 . 5 Detach . | . . . . . Swap 18 | . 1 6 . 11 Drop 14 | . 1 7 . 6 Fire 49 | . 11 26 . 12 Melee 13 | . . . . 13 Ram . | . . . . . Kick 2 | . 1 1 . . Crush . | . . . . . Escape Stasis . | . . . . . Rewire . | . . . . . Trap . | . . . . . Miscellaneous . | . . . . . Route ------- -11/Junkyard -10/Materials (discovered 5 exits: [*Mat x3] / [*Min x2]) -10/Mines (discovered 3 exits: [*Mat x2] / [*Exi]) -10/Exiles (discovered 2 exits: [*Min x2]) -9/Mines (discovered 1 exit: [*Mat]) History --------- Turn | Location | Event 9 | -11/Junkyard | Discovered new exit (range 14) 68 | -11/Junkyard | Entered Materials 262 | -10/Materials | Discovered new exit (range 13) 307 | -10/Materials | Discovered new exit (range 11) 317 | -10/Materials | Build established: Mutant 470 | -10/Materials | Discovered new exit (range 14) 645 | -10/Materials | Discovered new exit (range 11) 884 | -10/Materials | Discovered new exit (range 7) 1004 | -10/Materials | Entered Mines 1130 | -10/Mines | Learned Materials trap positions 1166 | -10/Mines | Deemed a non-threat by the Exiles lab entrance 1167 | -10/Mines | Discovered new exit (range 5) 1215 | -10/Mines | Discovered new exit (range 5) 1513 | -10/Mines | Received a Rocket Launcher from a helpful Derelict 1550 | -10/Mines | A weapon hastily lodged in a ceiling crevice suddenly fell to the ground 1633 | -10/Mines | Discovered new exit (range 6) 1763 | -10/Mines | Received a Mining Laser from a helpful Derelict 1864 | -10/Mines | Entered Exiles 1864 | -10/Exiles | Accompanied by 1 ally 1882 | -10/Exiles | Discovered new exit (range 15) 1924 | -10/Exiles | Met 8R-AWN 1944 | -10/Exiles | Met EX-HEX 1976 | -10/Exiles | Build established: Scavenger-Mutant 1982 | -10/Exiles | Met EX-BIN 2064 | -10/Exiles | Met EX-DEC 2149 | -10/Exiles | Discovered new exit (range 14) 2291 | -10/Exiles | Visited The Gauntlet 2539 | -10/Exiles | Entered Mines 2542 | -9/Mines | Assisted by bots powering up and referring to "LRC-V3" 2625 | -9/Mines | Discovered new exit (range 7) 2689 | -9/Mines | Core integrity fell below 50% 2722 | -9/Mines | Core integrity fell below 20% 2846 | -9/Mines | Lost 3 parts (1p1n1w) 2856 | -9/Mines | Learned location of Zion (-6) 2887 | -9/Mines | Build established: Mutant 3114 | -9/Mines | Excavation squad dispatched 3114 | -9/Mines | A large section of the Mines collapsed 3320 | -9/Mines | Destroyed by G-34 Mercenary with Small Laser Last Messages --------------- 02822_ Acquired Imp. Aluminum Leg. 02827_ Acquired Sml. Laser. 02830_ Acquired 40 matter. 02856_ Acquired derelict log, extracted data. World map updated: -6/Zion. 02994_ K-01 Serf collects debris. 03063_ Acquired derelict log, extracted data. World map confirmed: -6/Zion. 03114_ ALERT: Suspicious cave-in, suspected derelict activity in mines. Dispatching escorted excavation squad. 03309_ U-05 Engineer lays Concrete. 03314_ T-07 Excavator is excavating. 03314_ U-05 Engineer lays Concrete. 03316_ Sml. Laser destroyed. 03316_ U-05 Engineer lays Concrete. 03318_ T-07 Excavator is excavating. 03318_ U-05 Engineer lays Concrete. 03318_ Aluminum Leg destroyed. 03319_ U-05 Engineer lays Concrete. [Achievement: Back For More] Map ----- +----------------------------------------------------+ | #?????????????????????? | | """ #?????????????????????? | | """ #?????????????????????? | | """ #?????????????????????? | | #?????????????????????? | | #########?????????????????????? | | ??????????????????????????????? | | ??????????????????????????????? | | ??????????????????????????????? | | ??????###?????????????????????? | | ??????# ?????????????????????? | | ??????# #?????????????????????? | | ####### #?????????????????????? | | ## #?????????????????????? | | ## #?????????????????????? | | ### ## ##????????????????????? | | #?# #????????????????????? | | #?# #????????????????????? | | ??###### #?#####??????????????? | | ???????# ### ##?????????????? | | #?????## #?????????????? | | #?????# ##????????????? | | #????## ##?????####??? | | ###### ##???## #??? | | ## #???#####??? | | # ### #??###@##??? | | # ##?#### #### g##??? | | # #?????## ## g ;#??? | | # ##??????# g gt##??? | | ## #???????# ; #???? | | ?###???????# ; t #???? | | ???????????# ##???? | | ???????????## ## ut #????? | | ????????????######### t #????? | | ????????????????????## ###????? | | ?????????????????????####?????? | | ??????????????????????????????? | | ??????????????????????????????? | | | | | | | | | | | | | | | | | | | | | | | | | +----------------------------------------------------+ Best States ------------- Heat Dissipation 39 Energy Generation 10 Energy Capacity 250 Matter Stores 300 Matter Capacity 300 Sight Range 16 Terrain Scan Density 10 Evasion (%) 55 Item Schematics ----------------- None Robot Schematics ------------------ None Fabricated ------------ Nothing Alien Tech Used ----------------- None Achievements -------------- Back For More Challenges ------------ None Game ------ Seed ReactiveAssembledWeb Manual? 0 Play Time 00:22:45 Cumulative 45.0 hours Start 2023.12.26 @ 23:31:01 End 2023.12.26 @ 23:53:12 Sessions 1 Manual Loads 0 Difficulty Rogue Special Mode None Game No. 50 Rogue 50 Adventurer 0 Explorer 0 Win Type - Total 0 Types 0/0/0/0/0/0/0/0/0 Lore% 29 Gallery% 30 Achievement% 23 Wizard Run 0 Options --------- ASCII 0 Keyboard 1 Movement Numpad Keybinds 1 Fullscreen 1 Font 18/SmallcapsGlow Map View 76x50 Tactical HUD 1 Map Filters NONE Filters NONE Steam 1 RUN: 59fbada5-3f8b-44b0-8467-91d34f5d189f